bitfinex/quotes_BTCUSD_20241004
["timestamp","ask_amount","ask_price","bid_price","bid_amount"]
[1728052692115,0.000819,61108.0,61100.0,0.163665]
[1728052692345,0.000819,61108.0,61098.0,0.327339]
[1728052692346,0.27018551,61107.0,61097.0,0.167671]
[1728052692576,0.000819,61108.0,61098.0,0.327338]
[1728052692823,0.000819,61108.0,61098.0,0.163671]
[1728052693066,0.000819,61108.0,61099.0,0.163667]
[1728052693314,0.24543893,61106.0,61103.0,0.009]
[1728052693533,0.000819,61108.0,61103.0,0.009]
[1728052693534,0.02474708,61107.0,61103.0,0.009]
[1728052693756,0.163655,61104.0,61092.0,0.491057]
[1728052693971,0.24543893,61107.0,61090.0,0.1705]
[1728052694198,0.163659,61103.0,61098.0,0.009]
[1728052694488,0.18932309,61103.0,61098.0,0.009]
[1728052694732,0.18932309,61103.0,61091.0,0.163689]
[1728052694970,0.18932309,61103.0,61092.0,0.008]
[1728052694971,0.163675,61097.0,61092.0,0.008]
[1728052695217,0.0163675,61096.0,61092.0,0.008]
[1728052695670,0.04203362,61096.0,61092.0,0.008]
[1728052695910,0.02566612,61096.0,61092.0,0.008]
[1728052696357,0.02566612,61096.0,61090.0,0.327383]
[1728052696629,0.02566612,61096.0,61084.0,0.001636]
[1728052696630,0.02566612,61096.0,61095.0,0.163679]
[1728052697075,0.02566612,61096.0,61095.0,0.261979]
[1728052697318,0.04279946,61096.0,61095.0,0.261979]
[1728052697537,0.04379946,61096.0,61095.0,0.261979]
[1728052697970,0.01713334,61096.0,61095.0,0.261979]
[1728052698224,0.01813334,61096.0,61095.0,0.270979]
[1728052698879,0.01813334,61096.0,61095.0,0.009]
[1728052699136,0.01813334,61096.0,61095.0,0.172679]
[1728052699565,0.01713334,61096.0,61095.0,0.163679]
[1728052700022,0.01713334,61096.0,61090.0,0.163692]
[1728052700284,0.01713334,61096.0,61084.0,0.42845]
[1728052700285,0.01813334,61096.0,61095.0,0.009]
[1728052701023,0.04279926,61096.0,61085.0,0.163706]
[1728052701270,0.04279926,61096.0,61095.0,0.009]
[1728052701271,0.04379926,61096.0,61095.0,0.009]
[1728052702582,0.04279926,61096.0,61085.0,0.327408]
[1728052702830,0.07869016,61096.0,61095.0,0.007]
[1728052703074,0.07869016,61096.0,61095.0,0.170679]
[1728052703075,0.01813334,61096.0,61095.0,0.170679]
[1728052703344,0.01713334,61096.0,61095.0,0.165317]
[1728052703592,0.01713334,61096.0,61095.0,0.001638]
[1728052703836,0.05258027,61096.0,61095.0,0.010638]
[1728052704099,0.01788577,61096.0,61095.0,0.010638]
[1728052704349,0.01688577,61096.0,61095.0,0.001638]
[1728052704625,0.01788577,61096.0,61095.0,0.008638]
[1728052705574,0.043551,61096.0,61095.0,0.008638]
[1728052705814,0.042551,61096.0,61095.0,0.001638]
[1728052706055,0.042551,61096.0,61095.0,0.165317]
[1728052706317,0.043551,61096.0,61095.0,0.173317]
[1728052706797,0.02566523,61096.0,61095.0,0.165317]
[1728052707039,0.02666523,61096.0,61095.0,0.173317]
[1728052707527,0.02566523,61096.0,61095.0,0.165317]
[1728052707762,0.02566523,61096.0,61095.0,0.172317]
[1728052707763,0.02666523,61096.0,61095.0,0.172317]
[1728052709041,0.02566523,61096.0,61095.0,0.165317]
[1728052709487,0.02666523,61096.0,61095.0,0.173317]
[1728052709970,0.02566523,61096.0,61095.0,0.165317]
[1728052710194,0.02666523,61096.0,61095.0,0.173317]
[1728052710696,0.02566523,61096.0,61095.0,0.165317]
[1728052710948,0.000819,61105.0,61104.0,0.163655]
[1728052711199,0.000819,61105.0,61104.0,0.45136796]
[1728052712195,0.000818,61114.0,61113.0,0.286631]
[1728052712438,0.000818,61114.0,61113.0,0.57934396]
[1728052712439,0.24625693,61114.0,61113.0,0.57934396]
[1728052712670,0.000818,61114.0,61113.0,0.57934396]
[1728052713390,0.001818,61114.0,61113.0,0.58734396]
[1728052713662,0.24543893,61129.0,61128.0,0.163591]
[1728052713909,0.24543893,61129.0,61128.0,0.45130396]
[1728052714149,0.02565488,61131.0,61130.0,0.163585]
[1728052715319,0.05130237,61131.0,61130.0,0.163585]
[1728052715774,0.02564749,61131.0,61130.0,0.163585]
[1728052716701,0.02664749,61131.0,61130.0,0.172585]
[1728052717156,0.02564749,61131.0,61130.0,0.65559796]
[1728052717399,0.24543893,61146.0,61130.0,0.65559796]
[1728052717400,0.24543893,61146.0,61145.0,0.163545]
[1728052717758,0.24543893,61146.0,61145.0,0.45125796]
[1728052718270,0.02564387,61150.0,61149.0,0.163534]
[1728052718502,0.02564387,61150.0,61145.0,0.61479996]
[1728052718981,0.24543893,61163.0,61145.0,0.61479996]
[1728052719244,0.24543893,61163.0,61160.0,0.163503]
[1728052719486,0.24543893,61163.0,61153.0,0.28771296]
[1728052719727,0.02563948,61159.0,61157.0,0.163511]
[1728052719966,0.02563948,61159.0,61158.0,0.16351]
[1728052720207,0.02563948,61159.0,61158.0,0.45122296]
[1728052720951,0.000819,61167.0,61166.0,0.163489]
[1728052721439,0.000819,61167.0,61165.0,0.163492]
[1728052721672,0.02645307,61167.0,61165.0,0.163492]
[1728052722144,0.02645307,61167.0,61164.0,0.163494]
[1728052722367,0.02645307,61167.0,61163.0,0.61470496]
[1728052722867,0.02645307,61167.0,61163.0,0.28771296]
[1728052723112,0.02645307,61167.0,61163.0,0.45120796]
[1728052723336,0.02645307,61167.0,61164.0,0.339988]
[1728052723621,0.02645307,61167.0,61164.0,0.013]
[1728052723917,0.05636943,61167.0,61151.0,0.28771296]
[1728052724159,0.263494,61164.0,61163.0,0.013]
[1728052724383,0.71439367,61164.0,61163.0,0.013]
[1728052724880,0.42668071,61164.0,61163.0,0.013]
[1728052725355,0.42668071,61164.0,61141.0,0.28771296]
[1728052725356,0.26318671,61164.0,61141.0,0.28771296]
[1728052725618,0.1,61163.0,61145.0,0.163545]
[1728052725872,0.1,61164.0,61129.0,0.005]
[1728052725873,0.327051,61153.0,61129.0,0.005]
[1728052726121,0.327051,61153.0,61126.0,0.28771296]
[1728052726122,0.163561,61140.0,61126.0,0.28771296]
[1728052726366,0.0777,61153.0,61121.0,0.28771296]
[1728052726367,0.0163561,61139.0,61121.0,0.28771296]
[1728052726607,0.163579,61133.0,61121.0,0.28771296]
[1728052726835,0.24543893,61139.0,61124.0,0.327203]
[1728052727071,0.24543893,61132.0,61121.0,0.61493196]
[1728052727338,0.35167289,61138.0,61121.0,0.61493196]
[1728052727339,0.35167289,61138.0,61121.0,0.28771296]
[1728052727577,0.57260593,61131.0,61118.0,0.327235]
[1728052727889,0.57260593,61131.0,61111.0,0.28771296]
[1728052727890,0.163571,61136.0,61127.0,0.163592]
[1728052728146,0.02454389,61138.0,61111.0,0.005]
[1728052728147,0.42782342,61135.0,61126.0,0.163594]
[1728052728619,0.42782342,61135.0,61116.0,0.28771296]
[1728052728620,0.26425042,61135.0,61116.0,0.28771296]
[1728052728847,0.163581,61132.0,61123.0,0.163603]
[1728052729088,0.327151,61134.0,61126.0,0.163595]
[1728052729089,0.163575,61134.0,61126.0,0.163595]
[1728052729328,0.26425042,61135.0,61126.0,0.163595]
[1728052729550,0.001,61133.0,61121.0,0.012]
[1728052729774,0.24543893,61135.0,61126.0,0.163595]
[1728052730006,0.40901193,61135.0,61126.0,0.163595]
[1728052730258,0.001,61132.0,61126.0,0.163595]
[1728052730472,0.001,61132.0,61124.0,0.1636]
[1728052730473,0.16458,61132.0,61124.0,0.1636]
[1728052730707,0.04858229,61166.0,61122.0,0.327212]
[1728052730708,0.327101,61144.0,61122.0,0.327212]
[1728052730946,0.1,61152.0,61126.0,0.29571296]
[1728052730947,0.001,61135.0,61126.0,0.29571296]
[1728052731440,0.001,61135.0,61134.0,0.163575]
[1728052732162,0.02564884,61136.0,61135.0,0.163572]
[1728052733017,0.02564884,61136.0,61134.0,0.163575]
[1728052733132,0.02564884,61136.0,61121.0,0.28771296]
[1728052733374,0.02564884,61136.0,61135.0,0.007]
[1728052733846,0.02564884,61136.0,61133.0,0.490732]
[1728052734085,0.02564884,61136.0,61133.0,0.163577]
[1728052734320,0.02564884,61136.0,61130.0,0.32717]
[1728052734321,0.02564884,61136.0,61135.0,0.007]
[1728052734562,0.02564884,61136.0,61135.0,0.170572]
[1728052735515,0.02564884,61136.0,61135.0,0.163572]
[1728052736249,0.02564884,61136.0,61135.0,0.263572]
[1728052736481,0.02664884,61136.0,61135.0,0.277572]
[1728052736721,0.02664884,61136.0,61135.0,0.300572]
[1728052736966,0.02664884,61136.0,61135.0,0.263572]
[1728052736967,0.02564884,61136.0,61135.0,0.263572]
[1728052737197,0.24543893,61146.0,61145.0,0.163545]
[1728052737900,0.24543893,61155.0,61151.0,0.163527]
[1728052738157,0.24543893,61155.0,61147.0,0.327075]
[1728052738158,0.24543893,61155.0,61150.0,0.327063]
[1728052738390,0.24543893,61155.0,61135.0,0.114]
[1728052738391,0.26623315,61155.0,61135.0,0.114]
[1728052738633,0.02079422,61155.0,61141.0,0.327112]
[1728052738896,0.24543893,61146.0,61138.0,0.28771296]
[1728052739126,0.163538,61148.0,61129.0,0.0802]
[1728052739379,0.164542,61146.0,61145.0,0.014]
[1728052739866,0.24543893,61147.0,61131.0,0.001636]
[1728052740106,0.36501296,61148.0,61138.0,0.014]
[1728052740107,0.163561,61139.0,61138.0,0.014]
[1728052740359,0.163553,61143.0,61138.0,0.014]
[1728052740573,0.02564726,61144.0,61132.0,0.327159]
[1728052740842,0.02564726,61144.0,61141.0,0.163555]
[1728052741053,0.02564726,61144.0,61131.0,0.001636]
[1728052741054,0.02564726,61144.0,61137.0,0.163566]
[1728052741286,0.02564726,61144.0,61139.0,0.16356]
[1728052741522,0.40897893,61147.0,61139.0,0.16356]
[1728052741746,0.11404099,61146.0,61137.0,0.327129]
[1728052741987,0.24543893,61146.0,61131.0,0.001636]
[1728052742219,0.163558,61141.0,61133.0,0.163577]
[1728052742443,0.163558,61141.0,61131.0,0.328798]
[1728052742444,0.327117,61141.0,61131.0,0.001636]
[1728052742695,0.163577,61133.0,61132.0,0.012]
[1728052742936,0.263577,61133.0,61132.0,0.012]
[1728052743189,0.263577,61133.0,61131.0,0.001636]
[1728052743190,0.26358,61132.0,61131.0,0.001636]
[1728052743415,0.35838,61132.0,61131.0,0.001636]
[1728052743645,0.54456671,61132.0,61131.0,0.001636]
[1728052743884,0.38098671,61132.0,61107.0,0.163646]
[1728052744123,0.61492296,61123.0,61106.0,0.163648]
[1728052744346,0.28771296,61123.0,61098.0,0.29435096]
[1728052744588,0.327214,61122.0,61106.0,0.327298]
[1728052744830,0.24543893,61118.0,61111.0,0.163635]
[1728052745082,0.163622,61117.0,61109.0,0.163639]
[1728052745304,0.327214,61122.0,61107.0,0.327292]
[1728052745305,0.24543893,61121.0,61107.0,0.327294]
[1728052745539,0.32723,61119.0,61107.0,0.327294]
[1728052745779,0.33542412,61121.0,61107.0,0.001]
[1728052746018,0.33542412,61121.0,61109.0,0.163641]
[1728052746264,0.33542412,61121.0,61099.0,0.1]
[1728052746265,0.327262,61113.0,61103.0,0.327315]
[1728052746519,0.163641,61110.0,61107.0,0.008]
[1728052746743,0.28771296,61116.0,61107.0,0.008]
[1728052746744,0.163636,61112.0,61107.0,0.008]
[1728052746977,0.20403755,61112.0,61107.0,0.008]
[1728052747224,0.20403755,61112.0,61104.0,0.163654]
[1728052747463,0.20403755,61112.0,61098.0,0.001638]
[1728052747464,0.490917,61110.0,61109.0,0.005]
[1728052747682,0.36767155,61112.0,61109.0,0.005]
[1728052747931,0.163639,61110.0,61109.0,0.005]
[1728052748626,0.163639,61110.0,61102.0,0.16366]
[1728052748887,0.41735404,61111.0,61102.0,0.16366]
[1728052749133,0.41735404,61111.0,61107.0,0.009]
[1728052749134,0.163643,61109.0,61107.0,0.009]
[1728052749385,0.163639,61110.0,61107.0,0.009]
[1728052749643,0.163639,61110.0,61098.0,0.328978]
[1728052749644,0.163637,61111.0,61104.0,0.163654]
[1728052749881,0.001,61110.0,61105.0,0.163652]
[1728052750115,0.001,61110.0,61104.0,0.163654]
[1728052750338,0.07363269,61111.0,61104.0,0.163654]
[1728052750564,0.001,61110.0,61107.0,0.011]
[1728052750819,0.163644,61108.0,61107.0,0.011]
[1728052751518,0.18930455,61108.0,61107.0,0.011]
[1728052751764,0.163667,61100.0,61098.0,0.001638]
[1728052751995,0.490989,61102.0,61098.0,0.001638]
[1728052752240,0.09679625,61104.0,61098.0,0.001638]
[1728052752920,0.001,61100.0,61098.0,0.015638]
[1728052753134,0.001,61100.0,61098.0,0.179309]
[1728052753369,0.24543893,61106.0,61099.0,0.163668]
[1728052753627,0.40908993,61106.0,61099.0,0.163668]
[1728052753857,0.001,61104.0,61100.0,0.163665]
[1728052754079,0.001,61104.0,61098.0,0.015638]
[1728052754805,0.164655,61104.0,61098.0,0.015638]
[1728052755011,0.163655,61104.0,61098.0,0.001638]
[1728052755260,0.163655,61104.0,61099.0,0.01]
[1728052755703,0.0256615,61105.0,61099.0,0.01]
[1728052755912,0.163658,61103.0,61096.0,0.163674]
[1728052756207,0.163658,61103.0,61098.0,0.012]
[1728052756459,0.163668,61099.0,61098.0,0.012]
[1728052756717,0.0256615,61105.0,61096.0,0.32735]
[1728052756950,0.0266615,61105.0,61099.0,0.011]
[1728052757408,0.10903264,61104.0,61099.0,0.011]
[1728052757657,0.0266615,61105.0,61101.0,0.327326]
[1728052757871,0.0266615,61105.0,61101.0,0.163662]
[1728052758326,0.0256615,61105.0,61095.0,0.001638]
[1728052758552,0.0256615,61105.0,61098.0,0.177669]
[1728052758553,0.001,61099.0,61098.0,0.177669]
[1728052758796,0.001,61099.0,61098.0,0.014]
[1728052759008,0.001,61099.0,61095.0,0.328996]
[1728052759009,0.0256615,61105.0,61096.0,0.327352]
[1728052759237,0.0256615,61105.0,61095.0,0.001638]
[1728052759459,0.0256615,61105.0,61101.0,0.011]
[1728052759460,0.0266615,61105.0,61101.0,0.011]
[1728052759685,0.07630464,61104.0,61101.0,0.011]
[1728052759901,0.07630464,61104.0,61098.0,0.327341]
[1728052760120,0.001,61099.0,61098.0,0.505012]
[1728052760599,0.001,61099.0,61098.0,0.014]
[1728052760820,0.001,61099.0,61098.0,0.177671]
[1728052761038,0.001,61099.0,61098.0,0.014]
[1728052761304,0.001,61099.0,61098.0,0.177671]
[1728052761548,0.0256615,61105.0,61095.0,0.001638]
[1728052761549,0.28771296,61104.0,61095.0,0.001638]
[1728052761770,0.163676,61096.0,61095.0,0.001638]
[1728052762029,0.3311881,61104.0,61095.0,0.001638]
[1728052762030,0.327331,61101.0,61095.0,0.001638]
[1728052762256,0.163676,61096.0,61095.0,0.001638]
[1728052762476,0.30278859,61096.0,61095.0,0.001638]
[1728052762691,0.13911259,61096.0,61095.0,0.001638]
[1728052763129,0.13911259,61096.0,61095.0,0.013638]
[1728052763372,0.327331,61101.0,61095.0,0.013638]
[1728052763592,0.163676,61096.0,61095.0,0.013638]
[1728052764293,0.263676,61096.0,61095.0,0.013638]
[1728052764790,0.263676,61096.0,61084.0,0.001636]
[1728052764791,0.55141896,61085.0,61084.0,0.001636]
[1728052765048,5.72204076,61085.0,61084.0,0.001636]
[1728052766039,5.12304076,61085.0,61084.0,0.002636]
[1728052766289,1.45971566,61085.0,61084.0,0.002636]
[1728052766504,0.57709386,61085.0,61084.0,0.001636]
[1728052767004,0.57709386,61085.0,61084.0,0.002636]
[1728052767005,0.0336749,61085.0,61084.0,0.002636]
[1728052767247,0.008,61085.0,61084.0,0.002636]
[1728052768252,0.45141896,61085.0,61084.0,0.001636]
[1728052768751,0.45241896,61085.0,61084.0,0.001636]
[1728052769008,0.69606465,61085.0,61084.0,0.001636]
[1728052769275,0.77486465,61085.0,61084.0,0.001636]
[1728052769515,0.77586465,61085.0,61084.0,0.001636]
[1728052770020,0.77486465,61085.0,61084.0,0.001636]
[1728052770225,0.80053838,61085.0,61084.0,0.001636]
[1728052771454,0.81453838,61085.0,61084.0,0.002636]
[1728052771671,0.80053838,61085.0,61084.0,0.001636]
[1728052771921,0.80153838,61085.0,61084.0,0.001636]
[1728052772362,0.80053838,61085.0,61084.0,0.001636]
[1728052772804,0.80053838,61085.0,61084.0,0.002636]
[1728052773238,0.69606465,61085.0,61084.0,0.002636]
[1728052773508,0.1,61090.0,61084.0,0.002636]
[1728052773760,0.24543893,61092.0,61086.0,0.163702]
[1728052774008,0.24543893,61092.0,61084.0,0.002636]
[1728052774226,0.24543893,61085.0,61084.0,0.001636]
[1728052774431,0.163706,61085.0,61084.0,0.001636]
[1728052774690,0.163703,61087.0,61084.0,0.005636]
[1728052774900,0.02454389,61091.0,61084.0,0.005636]
[1728052775120,0.0757,61102.0,61084.0,0.005636]
[1728052775121,0.24543893,61090.0,61084.0,0.001636]
[1728052775332,0.24543893,61090.0,61085.0,0.163704]
[1728052775546,0.24543893,61090.0,61084.0,0.009636]
[1728052775792,0.24543893,61099.0,61084.0,0.009636]
[1728052775793,0.163706,61085.0,61084.0,0.009636]
[1728052776017,0.163706,61085.0,61084.0,0.001636]
[1728052776229,0.18937574,61085.0,61084.0,0.009636]
[1728052776709,0.02566974,61085.0,61084.0,0.009636]
[1728052776945,0.02566974,61085.0,61084.0,0.173344]
[1728052777176,0.02566974,61085.0,61084.0,0.009636]
[1728052777407,0.164694,61090.0,61084.0,0.173344]
[1728052777661,0.07375059,61089.0,61084.0,0.001636]
[1728052777893,0.07375059,61089.0,61086.0,0.163703]
[1728052778341,0.07375059,61089.0,61084.0,0.010636]
[1728052778342,0.07375059,61089.0,61084.0,0.001636]
[1728052778562,0.163698,61088.0,61084.0,0.010636]
[1728052778776,0.07375059,61089.0,61084.0,0.174343]
[1728052779084,0.08112615,61088.0,61085.0,0.163704]
[1728052779433,0.001,61089.0,61085.0,0.163704]
[1728052779850,0.001,61089.0,61088.0,0.163698]
[1728052780069,0.001,61089.0,61085.0,0.32741]
[1728052780285,0.001,61089.0,61087.0,0.1637]
[1728052780489,0.001,61089.0,61084.0,0.011636]
[1728052780715,0.02464389,61088.0,61086.0,0.163701]
[1728052780941,0.02566703,61089.0,61085.0,0.327412]
[1728052781219,0.02566703,61089.0,61088.0,0.163698]
[1728052781678,0.02566703,61089.0,61084.0,0.001636]
[1728052781679,0.0513367,61089.0,61084.0,0.001636]
[1728052781911,0.163706,61085.0,61084.0,0.001636]
[1728052782134,0.56727293,61085.0,61084.0,0.001636]
[1728052782815,0.56727293,61085.0,61084.0,0.012636]
[1728052782994,0.27955997,61085.0,61084.0,0.012636]
[1728052784131,0.27955997,61085.0,61084.0,0.001636]
[1728052784356,0.28055997,61085.0,61084.0,0.011636]
[1728052785047,0.001,61085.0,61084.0,0.011636]
[1728052785264,0.001,61085.0,61084.0,0.175344]
[1728052787231,0.001,61085.0,61084.0,0.011636]
[1728052787455,0.164706,61085.0,61084.0,0.011636]
[1728052789302,0.001,61085.0,61084.0,0.175344]
[1728052790167,0.001819,61085.0,61084.0,0.175344]
[1728052790393,0.18456157,61085.0,61084.0,0.011636]
[1728052791303,0.21023102,61085.0,61084.0,0.011636]
[1728052792846,0.04652502,61085.0,61084.0,0.011636]
[1728052793054,0.21023102,61085.0,61084.0,0.011636]
[1728052795758,0.19119445,61085.0,61084.0,0.011636]
[1728052798535,0.24012247,61085.0,61084.0,0.011636]
[1728052798748,0.19119445,61085.0,61084.0,0.011636]
[1728052799616,0.28905049,61085.0,61084.0,0.011636]
[1728052800041,0.19119445,61085.0,61084.0,0.011636]
[1728052800265,0.28905049,61085.0,61084.0,0.011636]
[1728052800488,0.10097468,61085.0,61084.0,0.175344]
[1728052800723,0.001819,61085.0,61084.0,0.175344]
[1728052800988,0.001819,61085.0,61084.0,0.251544]
[1728052801225,0.000819,61095.0,61094.0,0.163682]
[1728052801889,0.000819,61095.0,61094.0,0.16520365]
[1728052802123,0.000819,61095.0,61094.0,0.163682]
[1728052802587,0.000819,61095.0,61091.0,0.491065]
[1728052802806,0.000819,61095.0,61087.0,0.327401]
[1728052802807,0.24164783,61095.0,61087.0,0.163699]
[1728052803015,0.24164783,61095.0,61085.0,0.327412]
[1728052803016,0.04898442,61091.0,61084.0,0.011636]
[1728052803248,0.04898442,61087.0,61084.0,0.001636]
[1728052803509,0.21269267,61085.0,61084.0,0.001636]
[1728052803754,0.23718601,61085.0,61084.0,0.001636]
[1728052803981,0.26167935,61085.0,61084.0,0.001636]
[1728052804236,0.26170338,61085.0,61084.0,0.001636]
[1728052804442,0.163706,61085.0,61084.0,0.011636]
[1728052804655,0.302908,61085.0,61084.0,0.011636]
[1728052804901,0.302908,61085.0,61084.0,0.001636]
[1728052805108,0.163706,61085.0,61084.0,0.013636]
[1728052805760,0.31066603,61085.0,61084.0,0.013636]
[1728052806197,0.163706,61085.0,61084.0,0.013636]
[1728052806434,0.163706,61085.0,61084.0,0.001636]
[1728052806649,0.164706,61085.0,61084.0,0.008636]
[1728052806884,0.001,61085.0,61084.0,0.172344]
[1728052807109,0.09922142,61086.0,61085.0,0.163706]
[1728052807316,0.04903099,61086.0,61085.0,0.163706]
[1728052807532,0.04902655,61090.0,61089.0,0.163695]
[1728052808092,0.07355246,61092.0,61091.0,0.16369]
[1728052808093,0.04902655,61092.0,61091.0,0.16369]
[1728052808333,0.09887661,61095.0,61094.0,0.268682]
[1728052808334,0.000819,61095.0,61094.0,0.268682]
[1728052808613,0.000819,61104.0,61103.0,0.163658]
[1728052808816,0.24543893,61106.0,61105.0,0.163652]
[1728052809071,0.14543893,61106.0,61105.0,0.336552]
[1728052809316,0.24543893,61114.0,61113.0,0.163631]
[1728052809998,0.04902655,61119.0,61114.0,0.327255]
[1728052810210,0.163622,61117.0,61110.0,0.327278]
[1728052810435,0.163622,61117.0,61098.0,0.105]
[1728052810436,0.163624,61116.0,61098.0,0.105]
[1728052810703,0.04902655,61117.0,61098.0,0.1]
[1728052810914,0.45809348,61114.0,61113.0,0.011]
[1728052811192,0.81957116,61114.0,61113.0,0.011]
[1728052811397,0.81957116,61114.0,61094.0,0.163681]
[1728052811398,0.327314,61104.0,61097.0,0.163673]
[1728052811611,0.163663,61101.0,61094.0,0.327362]
[1728052811843,0.21258616,61103.0,61094.0,0.327362]
[1728052812076,0.04892616,61104.0,61099.0,0.163667]
[1728052812293,0.29436509,61105.0,61104.0,0.163655]
[1728052812508,0.29436509,61105.0,61087.0,0.38641345]
[1728052812509,0.24543893,61105.0,61102.0,0.16366]
[1728052812720,0.163648,61107.0,61103.0,0.163657]
[1728052812721,0.21257416,61107.0,61103.0,0.163657]
[1728052812936,0.21257416,61107.0,61100.0,0.327329]
[1728052812937,0.04892616,61107.0,61100.0,0.327329]
[1728052813209,0.04892616,61107.0,61103.0,0.163658]
[1728052813456,0.04892616,61111.0,61107.0,0.163646]
[1728052813736,0.1633755,61102.0,61097.0,0.163671]
[1728052813949,0.04892616,61109.0,61087.0,0.0985]
[1728052813950,0.327312,61104.0,61087.0,0.0985]
[1728052814162,0.327312,61104.0,61085.0,0.079638]
[1728052814163,0.327331,61101.0,61090.0,0.327381]
[1728052814391,0.327331,61101.0,61085.0,0.079638]
[1728052814392,0.02566288,61101.0,61089.0,0.327389]
[1728052814619,0.07458312,61101.0,61091.0,0.327376]
[1728052814855,0.07458312,61101.0,61085.0,0.079638]
[1728052814856,0.04892024,61100.0,61085.0,0.079638]
[1728052815326,0.02566288,61101.0,61100.0,0.163666]
[1728052815567,0.02566288,61101.0,61100.0,0.244066]
[1728052816343,0.02566288,61101.0,61100.0,0.267066]
[1728052816584,0.000819,61120.0,61119.0,0.163615]
[1728052817075,0.000819,61120.0,61119.0,0.263615]
[1728052817769,0.000819,61120.0,61119.0,0.286615]
[1728052818021,0.000819,61120.0,61119.0,0.300615]
[1728052818284,0.24543893,61136.0,61135.0,0.163572]
[1728052818501,0.24543893,61136.0,61135.0,0.55668545]
[1728052818954,0.000818,61144.0,61143.0,0.163551]
[1728052819180,0.000818,61144.0,61141.0,0.490666]
[1728052819426,0.000818,61144.0,61142.0,0.163552]
[1728052820117,0.000818,61144.0,61140.0,0.163556]
[1728052820799,0.000818,61144.0,61136.0,0.327138]
[1728052821029,0.000818,61144.0,61138.0,0.163562]
[1728052821030,0.163553,61143.0,61138.0,0.163562]
[1728052821247,0.000818,61144.0,61143.0,0.163551]
[1728052821505,0.000818,61144.0,61140.0,0.014]
[1728052821708,0.163556,61141.0,61140.0,0.014]
[1728052823143,0.327102,61143.0,61118.0,0.29291345]
[1728052823144,0.163571,61136.0,61132.0,0.163579]
[1728052823368,0.000818,61144.0,61123.0,0.28791345]
[1728052823588,0.327127,61139.0,61138.0,0.01]
[1728052823811,0.490688,61139.0,61138.0,0.01]
[1728052824059,0.163561,61139.0,61138.0,0.01]
[1728052824304,0.163561,61139.0,61128.0,0.32718]
[1728052824305,0.000818,61144.0,61128.0,0.28791345]
[1728052824529,0.24543893,61143.0,61140.0,0.327115]
[1728052824755,0.24543893,61143.0,61141.0,0.163554]
[1728052824973,0.02564339,61143.0,61142.0,0.163552]
[1728052827167,0.02564339,61143.0,61142.0,0.177552]
[1728052828118,0.000818,61143.0,61142.0,0.177552]
[1728052830080,0.000818,61143.0,61142.0,0.014]
[1728052830081,0.164369,61143.0,61142.0,0.014]
[1728052830582,0.000818,61143.0,61142.0,0.014]
[1728052830826,0.000818,61143.0,61142.0,0.177553]
[1728052831065,0.000818,61143.0,61142.0,0.014]
[1728052831066,0.164369,61143.0,61142.0,0.014]
[1728052831312,0.164369,61143.0,61142.0,0.177553]
[1728052831313,0.0264621,61143.0,61142.0,0.177553]
[1728052831782,0.03067682,61143.0,61142.0,0.177553]
[1728052832021,0.0264621,61143.0,61142.0,0.177553]
[1728052832273,0.0264621,61143.0,61142.0,0.163553]
[1728052832522,0.0264621,61143.0,61142.0,0.166553]
[1728052833018,0.0264621,61143.0,61142.0,0.163553]
[1728052833521,0.0264621,61143.0,61142.0,0.177553]
[1728052834010,0.0264621,61143.0,61142.0,0.163553]
[1728052834763,0.0264621,61143.0,61133.0,0.417954]
[1728052834764,0.0264621,61143.0,61139.0,0.327123]
[1728052835022,0.0264621,61143.0,61128.0,0.123]
[1728052835266,0.00422543,61142.0,61130.0,0.28791345]
[1728052835515,0.00422543,61142.0,61137.0,0.327133]
[1728052835757,0.2496617,61141.0,61134.0,0.327147]
[1728052836008,0.2496617,61141.0,61123.0,0.12363]
[1728052836009,0.327133,61138.0,61125.0,0.0776]
[1728052836256,0.327139,61136.0,61120.0,0.28791345]
[1728052836502,0.327143,61136.0,61120.0,0.28791345]
[1728052836924,0.327143,61136.0,61128.0,0.16359]
[1728052836925,0.02564584,61133.0,61128.0,0.16359]
[1728052836929,0.02564584,61133.0,61110.0,0.36991345]
[1728052837191,0.02564584,61133.0,61114.0,0.163628]
[1728052837192,0.327206,61124.0,61114.0,0.163628]
[1728052837433,0.02564584,61133.0,61118.0,0.163617]
[1728052837434,0.163609,61122.0,61118.0,0.163617]
[1728052837702,0.24543893,61129.0,61113.0,0.327257]
[1728052837703,0.00417781,61121.0,61113.0,0.327257]
[1728052837956,0.00417781,61121.0,61120.0,0.45152545]
[1728052838229,0.1,61138.0,61121.0,0.163609]
[1728052838230,0.02565143,61122.0,61121.0,0.163609]
[1728052838473,0.24543893,61132.0,61131.0,0.163583]
[1728052838954,0.00417939,61132.0,61131.0,0.163583]
[1728052839433,0.24543893,61139.0,61133.0,0.163576]
[1728052839434,0.163565,61138.0,61133.0,0.163576]
[1728052839680,0.30285662,61139.0,61133.0,0.327155]
[1728052839918,0.00419754,61137.0,61133.0,0.327155]
[1728052840159,0.24543893,61139.0,61132.0,0.327159]
[1728052840160,0.00420415,61138.0,61132.0,0.327159]
[1728052840403,0.00419757,61136.0,61132.0,0.327159]
[1728052840639,0.00419757,61136.0,61131.0,0.014]
[1728052840640,0.49071,61136.0,61131.0,0.17758]
[1728052840900,0.32792,61143.0,61134.0,0.163575]
[1728052840901,0.00419228,61135.0,61134.0,0.163575]
[1728052841137,0.02983926,61135.0,61134.0,0.163575]
[1728052841378,0.02564698,61135.0,61134.0,0.163575]
[1728052842111,0.000818,61143.0,61142.0,0.163553]
[1728052843367,0.000818,61143.0,61142.0,0.177553]
[1728052847427,0.000818,61143.0,61142.0,0.54273971]
[1728052848386,0.000819,61166.0,61147.0,0.005]
[1728052848644,0.000819,61166.0,61156.0,0.55542945]